[Event "Titled Tuesday Blitz August 3 2021"]
[White "Matinian, Nikita"]
[Black "Chen, Max"]
[WhiteFideId "24129100"]
[BlackFideId "2622440"]
[WhiteElo "2410"]
[BlackElo "2456"]
[Result "1-0"]
[Round "07"]
[TimeControl "180+1"]
[Date "2021.08.03"]
[WhiteClock "0:01:18"]
[BlackClock "0:00:03"]

1. e4 {[%clk 0:03:00]}  c5 {[%clk 0:02:59]} 2. Nc3 {[%clk 0:03:00]}  Nc6 {[%clk 0:02:57]} 3. Bb5 {[%clk 0:02:59]}  Nd4 {[%clk 0:02:56]} 4. Nf3 {[%clk 0:03:00]}  Nxb5 {[%clk 0:02:55]} 5. Nxb5 {[%clk 0:03:00]}  g6 {[%clk 0:02:54]} 6. d4 {[%clk 0:02:59]}  Bg7 {[%clk 0:02:48]} 7. O-O {[%clk 0:02:56]}  cxd4 {[%clk 0:02:47]} 8. Nbxd4 {[%clk 0:02:50]}  d6 {[%clk 0:02:46]} 9. c4 {[%clk 0:02:49]}  Bg4 {[%clk 0:02:45]} 10. Be3 {[%clk 0:02:43]}  Nf6 {[%clk 0:02:44]} 11. h3 {[%clk 0:02:42]}  Bd7 {[%clk 0:02:25]} 12. e5 {[%clk 0:02:42]}  dxe5 {[%clk 0:02:22]} 13. Nxe5 {[%clk 0:02:42]}  O-O {[%clk 0:02:22]} 14. Qe2 {[%clk 0:02:30]}  Rc8 {[%clk 0:02:15]} 15. Rfd1 {[%clk 0:02:29]}  a6 {[%clk 0:01:55]} 16. Rac1 {[%clk 0:01:41]}  Re8 {[%clk 0:01:33]} 17. b4 {[%clk 0:01:39]}  Qc7 {[%clk 0:01:29]} 18. Nxd7 {[%clk 0:01:38]}  Nxd7 {[%clk 0:01:28]} 19. c5 {[%clk 0:01:38]}  Red8 {[%clk 0:01:20]} 20. c6 {[%clk 0:01:38]}  Ne5 {[%clk 0:01:15]} 21. b5 {[%clk 0:01:33]}  bxc6 {[%clk 0:00:03]} 22. bxc6 {[%clk 0:01:34]}  Qa5 {[%clk 0:00:03]} 23. f4 {[%clk 0:01:18]} 1-0


[Site "https://www.chess.com"]

[Event "Titled Tuesday Blitz August 3 2021"]
[White "Melikhov, Evgeny V."]
[Black "Aggelis, Nikolaos"]
[WhiteFideId "4122046"]
[BlackFideId "4213220"]
[WhiteElo "1965"]
[BlackElo "2154"]
[Result "0-1"]
[Round "07"]
[TimeControl "180+1"]
[Date "2021.08.03"]
[WhiteClock "0:00:07"]
[BlackClock "0:00:16"]

1. d4 {[%clk 0:03:00]}  Nf6 {[%clk 0:02:58]} 2. c4 {[%clk 0:03:00]}  g6 {[%clk 0:02:57]} 3. Nc3 {[%clk 0:03:00]}  d5 {[%clk 0:02:58]} 4. Nf3 {[%clk 0:02:58]}  Bg7 {[%clk 0:02:58]} 5. e3 {[%clk 0:02:58]}  O-O {[%clk 0:02:57]} 6. Be2 {[%clk 0:02:58]}  c5 {[%clk 0:02:57]} 7. O-O {[%clk 0:02:58]}  cxd4 {[%clk 0:02:57]} 8. exd4 {[%clk 0:02:59]}  dxc4 {[%clk 0:02:57]} 9. Bxc4 {[%clk 0:02:58]}  a6 {[%clk 0:02:57]} 10. Re1 {[%clk 0:02:56]}  b5 {[%clk 0:02:57]} 11. Bf1 {[%clk 0:02:53]}  Nc6 {[%clk 0:02:57]} 12. h3 {[%clk 0:02:48]}  Bb7 {[%clk 0:02:55]} 13. Bg5 {[%clk 0:02:46]}  Rc8 {[%clk 0:02:54]} 14. Qd2 {[%clk 0:02:45]}  Na5 {[%clk 0:02:52]} 15. Rad1 {[%clk 0:02:37]}  Bxf3 {[%clk 0:02:50]} 16. gxf3 {[%clk 0:02:37]}  Nc4 {[%clk 0:02:50]} 17. Qe2 {[%clk 0:02:34]}  Re8 {[%clk 0:02:48]} 18. b3 {[%clk 0:02:19]}  Nb6 {[%clk 0:02:33]} 19. Ne4 {[%clk 0:02:15]}  Nbd5 {[%clk 0:02:30]} 20. Qd2 {[%clk 0:02:00]}  Qd7 {[%clk 0:02:27]} 21. Bh6 {[%clk 0:01:51]}  Qf5 {[%clk 0:02:26]} 22. Bxg7 {[%clk 0:01:48]}  Kxg7 {[%clk 0:02:26]} 23. Bg2 {[%clk 0:01:40]}  Nf4 {[%clk 0:02:21]} 24. Nxf6 {[%clk 0:01:38]}  Qxf6 {[%clk 0:02:19]} 25. Qe3 {[%clk 0:01:30]}  Rc2 {[%clk 0:02:06]} 26. Qe5 {[%clk 0:01:24]}  Qxe5 {[%clk 0:02:03]} 27. dxe5 {[%clk 0:01:16]}  Rxa2 {[%clk 0:02:03]} 28. Rd7 {[%clk 0:01:08]}  Rb2 {[%clk 0:01:58]} 29. Ra1 {[%clk 0:01:00]}  Rxb3 {[%clk 0:01:50]} 30. Rxa6 {[%clk 0:01:00]}  Rb1+ {[%clk 0:01:51]} 31. Kh2 {[%clk 0:01:00]}  Re1 {[%clk 0:01:39]} 32. Raa7 {[%clk 0:00:47]}  Rxe5 {[%clk 0:01:37]} 33. Rdb7 {[%clk 0:00:44]}  Re2 {[%clk 0:01:16]} 34. Kg1 {[%clk 0:00:41]}  Re5 {[%clk 0:01:16]} 35. Bf1 {[%clk 0:00:40]}  Kf6 {[%clk 0:00:57]} 36. Kh2 {[%clk 0:00:40]}  Rh5 {[%clk 0:00:53]} 37. Rxb5 {[%clk 0:00:38]}  Rxb5 {[%clk 0:00:52]} 38. Bxb5 {[%clk 0:00:38]}  Rb8 {[%clk 0:00:52]} 39. Bc6 {[%clk 0:00:35]}  Rb2 {[%clk 0:00:51]} 40. Kg3 {[%clk 0:00:35]}  Nd3 {[%clk 0:00:51]} 41. Ra6 {[%clk 0:00:33]}  e6 {[%clk 0:00:50]} 42. Be8 {[%clk 0:00:32]}  Ke7 {[%clk 0:00:49]} 43. Bc6 {[%clk 0:00:28]}  Nxf2 {[%clk 0:00:49]} 44. Ra7+ {[%clk 0:00:28]}  Kf8 {[%clk 0:00:49]} 45. Ra8+ {[%clk 0:00:27]}  Kg7 {[%clk 0:00:48]} 46. Ra7 {[%clk 0:00:27]}  Nh1+ {[%clk 0:00:40]} 47. Kf4 {[%clk 0:00:26]}  Rb8 {[%clk 0:00:36]} 48. Ra2 {[%clk 0:00:21]}  Kf6 {[%clk 0:00:34]} 49. Ke3 {[%clk 0:00:21]}  Ng3 {[%clk 0:00:33]} 50. Kf4 {[%clk 0:00:18]}  Nf5 {[%clk 0:00:33]} 51. Ke4 {[%clk 0:00:16]}  Rb4+ {[%clk 0:00:33]} 52. Kd3 {[%clk 0:00:16]}  Rh4 {[%clk 0:00:32]} 53. Rh2 {[%clk 0:00:14]}  Ke5 {[%clk 0:00:30]} 54. Be8 {[%clk 0:00:13]}  f6 {[%clk 0:00:30]} 55. Bf7 {[%clk 0:00:13]}  Nd6 {[%clk 0:00:29]} 56. Bg8 {[%clk 0:00:12]}  Kf5 {[%clk 0:00:26]} 57. Re2 {[%clk 0:00:12]}  e5 {[%clk 0:00:25]} 58. Rd2 {[%clk 0:00:11]}  Rxh3 {[%clk 0:00:24]} 59. Ke3 {[%clk 0:00:12]}  Nb5 {[%clk 0:00:23]} 60. Rd5 {[%clk 0:00:11]}  Nd4 {[%clk 0:00:23]} 61. Rd7 {[%clk 0:00:12]}  Rxf3+ {[%clk 0:00:22]} 62. Kd2 {[%clk 0:00:12]}  Rf2+ {[%clk 0:00:22]} 63. Ke3 {[%clk 0:00:12]}  Rf3+ {[%clk 0:00:23]} 64. Kd2 {[%clk 0:00:12]}  Ra3 {[%clk 0:00:22]} 65. Bxh7 {[%clk 0:00:12]}  Rg3 {[%clk 0:00:20]} 66. Ke1 {[%clk 0:00:11]}  Ne6 {[%clk 0:00:20]} 67. Bg8 {[%clk 0:00:11]}  Nf4 {[%clk 0:00:20]} 68. Re7 {[%clk 0:00:10]}  Ra3 {[%clk 0:00:20]} 69. Re8 {[%clk 0:00:09]}  Ra6 {[%clk 0:00:19]} 70. Kf2 {[%clk 0:00:09]}  g5 {[%clk 0:00:19]} 71. Bh7+ {[%clk 0:00:08]}  Kg4 {[%clk 0:00:19]} 72. Rg8 {[%clk 0:00:09]}  f5 {[%clk 0:00:18]} 73. Rf8 {[%clk 0:00:08]}  Ra2+ {[%clk 0:00:17]} 74. Kf1 {[%clk 0:00:07]}  Ra1+ {[%clk 0:00:16]} 75. Kf2 {[%clk 0:00:07]}  Nh3+ {[%clk 0:00:16]} 76. Ke2 {[%clk 0:00:07]}  f4 {[%clk 0:00:16]} 77. Bf5+ {[%clk 0:00:07]}  Kg3 {[%clk 0:00:17]} 78. Bxh3 {[%clk 0:00:07]}  Kxh3 {[%clk 0:00:18]} 79. Rf5 {[%clk 0:00:07]}  Ra2+ {[%clk 0:00:16]} 80. Kf3 {[%clk 0:00:07]}  g4+ {[%clk 0:00:16]} 81. Ke4 {[%clk 0:00:07]}  Re2+ {[%clk 0:00:16]} 82. Kd5 {[%clk 0:00:07]}  f3 {[%clk 0:00:16]} 83. Rg5 {[%clk 0:00:07]}  Kg3 {[%clk 0:00:16]} 84. Ke6 {[%clk 0:00:07]}  f2 {[%clk 0:00:16]} 85. Kf5 {[%clk 0:00:07]}  f1=Q+ {[%clk 0:00:16]} 0-1


[Site "https://www.chess.com"]

[Event "Titled Tuesday Blitz August 3 2021"]
[White "MikeKorovin"]
[Black "Perez Gormaz, Matias"]
[BlackFideId "3406342"]
[WhiteElo "2722"]
[BlackElo "2414"]
[Result "1-0"]
[Round "07"]
[TimeControl "180+1"]
[Date "2021.08.03"]
[WhiteClock "0:00:47"]
[BlackClock "0:00:02"]

1. Nf3 {[%clk 0:03:00]}  d5 {[%clk 0:02:59]} 2. b3 {[%clk 0:03:00]}  Bg4 {[%clk 0:02:59]} 3. Bb2 {[%clk 0:03:01]}  Bxf3 {[%clk 0:03:00]} 4. exf3 {[%clk 0:03:02]}  Nf6 {[%clk 0:03:01]} 5. d3 {[%clk 0:03:02]}  g6 {[%clk 0:03:01]} 6. Nd2 {[%clk 0:03:03]}  Bg7 {[%clk 0:03:02]} 7. g3 {[%clk 0:03:04]}  Nh5 {[%clk 0:03:02]} 8. Qc1 {[%clk 0:03:02]}  O-O {[%clk 0:03:01]} 9. Bg2 {[%clk 0:03:02]}  e6 {[%clk 0:03:00]} 10. O-O {[%clk 0:02:58]}  Bxb2 {[%clk 0:03:00]} 11. Qxb2 {[%clk 0:02:59]}  Qf6 {[%clk 0:03:00]} 12. d4 {[%clk 0:02:59]}  c5 {[%clk 0:03:00]} 13. c3 {[%clk 0:02:58]}  cxd4 {[%clk 0:02:59]} 14. cxd4 {[%clk 0:02:59]}  Nc6 {[%clk 0:03:00]} 15. f4 {[%clk 0:02:13]}  Nxd4 {[%clk 0:02:58]} 16. Qb1 {[%clk 0:02:13]}  Rac8 {[%clk 0:02:54]} 17. Qd1 {[%clk 0:02:11]}  Rc2 {[%clk 0:02:33]} 18. Nf3 {[%clk 0:02:11]}  Ne2+ {[%clk 0:02:02]} 19. Kh1 {[%clk 0:02:10]}  Rfc8 {[%clk 0:02:02]} 20. Ne5 {[%clk 0:01:57]}  Nhxf4 {[%clk 0:01:40]} 21. gxf4 {[%clk 0:01:47]}  Nxf4 {[%clk 0:01:40]} 22. Nc4 {[%clk 0:01:35]}  Re2 {[%clk 0:01:07]} 23. Bf3 {[%clk 0:01:28]}  dxc4 {[%clk 0:00:08]} 24. Bxe2 {[%clk 0:01:28]}  c3 {[%clk 0:00:09]} 25. Rc1 {[%clk 0:01:17]}  Rc5 {[%clk 0:00:09]} 26. Bf3 {[%clk 0:01:13]}  Kg7 {[%clk 0:00:06]} 27. Re1 {[%clk 0:00:56]}  b5 {[%clk 0:00:05]} 28. Re3 {[%clk 0:00:49]}  Qh4 {[%clk 0:00:02]} 29. Qd4+ {[%clk 0:00:47]}  e5 {[%clk 0:00:02]} 1-0


[Site "https://www.chess.com"]

[Event "Titled Tuesday Blitz August 3 2021"]
[White "Nazaretyan, Tigran"]
[Black "Urazayev, Arystanbek"]
[WhiteFideId "24162345"]
[BlackFideId "13709810"]
[WhiteElo "2214"]
[BlackElo "2321"]
[Result "0-1"]
[Round "07"]
[TimeControl "180+1"]
[Date "2021.08.03"]
[WhiteClock "0:00:14"]
[BlackClock "0:00:21"]

1. d4 {[%clk 0:03:00]}  d5 {[%clk 0:02:56]} 2. c4 {[%clk 0:02:59]}  e6 {[%clk 0:02:57]} 3. Nf3 {[%clk 0:02:59]}  a6 {[%clk 0:02:56]} 4. e3 {[%clk 0:02:57]}  dxc4 {[%clk 0:02:56]} 5. a4 {[%clk 0:02:57]}  c5 {[%clk 0:02:52]} 6. Bxc4 {[%clk 0:02:56]}  Nc6 {[%clk 0:02:53]} 7. O-O {[%clk 0:02:56]}  Nf6 {[%clk 0:02:51]} 8. Qe2 {[%clk 0:02:56]}  cxd4 {[%clk 0:02:51]} 9. Rd1 {[%clk 0:02:55]}  Be7 {[%clk 0:02:50]} 10. exd4 {[%clk 0:02:55]}  O-O {[%clk 0:02:50]} 11. Nc3 {[%clk 0:02:52]}  Nb4 {[%clk 0:02:51]} 12. Ra3 {[%clk 0:02:51]}  Bd7 {[%clk 0:02:51]} 13. Ne5 {[%clk 0:02:49]}  Bc6 {[%clk 0:02:51]} 14. Rb3 {[%clk 0:02:46]}  Nbd5 {[%clk 0:02:48]} 15. Nxc6 {[%clk 0:02:36]}  bxc6 {[%clk 0:02:49]} 16. Ne4 {[%clk 0:02:35]}  Nxe4 {[%clk 0:02:46]} 17. Qxe4 {[%clk 0:02:35]}  a5 {[%clk 0:02:42]} 18. Rh3 {[%clk 0:02:34]}  g6 {[%clk 0:02:42]} 19. Bh6 {[%clk 0:02:27]}  Re8 {[%clk 0:02:40]} 20. Rf3 {[%clk 0:02:23]}  Bg5 {[%clk 0:02:38]} 21. Bxg5 {[%clk 0:02:01]}  Qxg5 {[%clk 0:02:39]} 22. h4 {[%clk 0:01:54]}  Qe7 {[%clk 0:02:35]} 23. h5 {[%clk 0:01:54]}  Rab8 {[%clk 0:02:36]} 24. b3 {[%clk 0:01:53]}  Kg7 {[%clk 0:02:30]} 25. Re1 {[%clk 0:01:51]}  Qd6 {[%clk 0:02:14]} 26. h6+ {[%clk 0:01:49]}  Kg8 {[%clk 0:02:11]} 27. Qh4 {[%clk 0:01:44]}  Qd8 {[%clk 0:02:08]} 28. Qh3 {[%clk 0:01:40]}  Qg5 {[%clk 0:02:05]} 29. Re4 {[%clk 0:01:39]}  Rbd8 {[%clk 0:01:50]} 30. Re5 {[%clk 0:01:36]}  Qe7 {[%clk 0:01:44]} 31. Qg4 {[%clk 0:01:26]}  Rd6 {[%clk 0:01:41]} 32. Rd3 {[%clk 0:01:14]}  Red8 {[%clk 0:01:40]} 33. Rd2 {[%clk 0:01:12]}  Nf6 {[%clk 0:01:36]} 34. Qh4 {[%clk 0:01:09]}  Nd5 {[%clk 0:01:34]} 35. Qg3 {[%clk 0:01:04]}  Qf6 {[%clk 0:01:32]} 36. Rd3 {[%clk 0:01:01]}  Qf4 {[%clk 0:01:16]} 37. Bxd5 {[%clk 0:00:41]}  Qc1+ {[%clk 0:01:14]} 38. Kh2 {[%clk 0:00:41]}  Qxh6+ {[%clk 0:01:14]} 39. Kg1 {[%clk 0:00:38]}  Rxd5 {[%clk 0:01:09]} 40. Rxd5 {[%clk 0:00:37]}  Rxd5 {[%clk 0:01:10]} 41. Qc7 {[%clk 0:00:30]}  Qc1+ {[%clk 0:01:09]} 42. Kh2 {[%clk 0:00:30]}  Rh5+ {[%clk 0:01:03]} 43. Rh3 {[%clk 0:00:30]}  Rxh3+ {[%clk 0:01:00]} 44. gxh3 {[%clk 0:00:28]}  Qd2 {[%clk 0:00:57]} 45. Kg2 {[%clk 0:00:26]}  Kg7 {[%clk 0:00:49]} 46. Qe5+ {[%clk 0:00:24]}  Kh6 {[%clk 0:00:37]} 47. Qe3+ {[%clk 0:00:22]}  Qxe3 {[%clk 0:00:38]} 48. fxe3 {[%clk 0:00:23]}  Kg5 {[%clk 0:00:36]} 49. Kf3 {[%clk 0:00:24]}  Kf6 {[%clk 0:00:35]} 50. b4 {[%clk 0:00:23]}  Ke7 {[%clk 0:00:30]} 51. bxa5 {[%clk 0:00:21]}  Kd6 {[%clk 0:00:30]} 52. Ke4 {[%clk 0:00:22]}  g5 {[%clk 0:00:28]} 53. a6 {[%clk 0:00:21]}  Kc7 {[%clk 0:00:28]} 54. Ke5 {[%clk 0:00:21]}  h5 {[%clk 0:00:28]} 55. a5 {[%clk 0:00:15]}  Kb8 {[%clk 0:00:27]} 56. Kf6 {[%clk 0:00:12]}  g4 {[%clk 0:00:27]} 57. hxg4 {[%clk 0:00:12]}  hxg4 {[%clk 0:00:28]} 58. Kxf7 {[%clk 0:00:13]}  g3 {[%clk 0:00:28]} 59. Kxe6 {[%clk 0:00:13]}  g2 {[%clk 0:00:29]} 60. e4 {[%clk 0:00:14]}  g1=Q {[%clk 0:00:29]} 61. d5 {[%clk 0:00:14]}  cxd5 {[%clk 0:00:29]} 62. exd5 {[%clk 0:00:15]}  Qe3+ {[%clk 0:00:29]} 63. Kd7 {[%clk 0:00:15]}  Ka7 {[%clk 0:00:22]} 64. d6 {[%clk 0:00:15]}  Kxa6 {[%clk 0:00:23]} 65. Kc6 {[%clk 0:00:14]}  Qc3+ {[%clk 0:00:23]} 66. Kd7 {[%clk 0:00:13]}  Kxa5 {[%clk 0:00:23]} 67. Ke8 {[%clk 0:00:14]}  Qe5+ {[%clk 0:00:23]} 68. Kd7 {[%clk 0:00:14]}  Kb6 {[%clk 0:00:23]} 69. Kc8 {[%clk 0:00:14]}  Kc6 {[%clk 0:00:21]} 70. d7 {[%clk 0:00:14]}  Qc7# {[%clk 0:00:21]} 0-1


[Site "https://www.chess.com"]

[Event "Titled Tuesday Blitz August 3 2021"]
[White "Nefedov, Sergey"]
[Black "ketster"]
[WhiteFideId "24113417"]
[WhiteElo "2385"]
[BlackElo "2400"]
[Result "1-0"]
[Round "07"]
[TimeControl "180+1"]
[Date "2021.08.03"]
[WhiteClock "0:00:05"]
[BlackClock "0:00:02"]

1. d4 {[%clk 0:03:00]}  Nf6 {[%clk 0:02:58]} 2. Nf3 {[%clk 0:02:58]}  d5 {[%clk 0:02:58]} 3. c4 {[%clk 0:02:57]}  e6 {[%clk 0:02:57]} 4. Nc3 {[%clk 0:02:57]}  dxc4 {[%clk 0:02:56]} 5. Qa4+ {[%clk 0:02:49]}  c6 {[%clk 0:02:55]} 6. Qxc4 {[%clk 0:02:48]}  b5 {[%clk 0:02:53]} 7. Qd3 {[%clk 0:02:48]}  a6 {[%clk 0:02:52]} 8. e4 {[%clk 0:02:48]}  Bb7 {[%clk 0:02:46]} 9. Bg5 {[%clk 0:02:47]}  Be7 {[%clk 0:02:45]} 10. e5 {[%clk 0:02:47]}  Nd5 {[%clk 0:02:36]} 11. Ne4 {[%clk 0:02:47]}  f6 {[%clk 0:02:33]} 12. exf6 {[%clk 0:02:37]}  gxf6 {[%clk 0:02:33]} 13. Bd2 {[%clk 0:02:34]}  Nd7 {[%clk 0:02:32]} 14. Rc1 {[%clk 0:02:20]}  Rc8 {[%clk 0:02:14]} 15. Be2 {[%clk 0:01:59]}  c5 {[%clk 0:02:07]} 16. dxc5 {[%clk 0:01:54]}  Nxc5 {[%clk 0:02:05]} 17. Nxc5 {[%clk 0:01:54]}  Bxc5 {[%clk 0:01:56]} 18. O-O {[%clk 0:01:53]}  Qb6 {[%clk 0:01:44]} 19. Bh6 {[%clk 0:01:14]}  Rd8 {[%clk 0:01:15]} 20. Qe4 {[%clk 0:00:29]}  Ne3 {[%clk 0:00:50]} 21. Qh4 {[%clk 0:00:28]}  Nxf1 {[%clk 0:00:43]} 22. Qh5+ {[%clk 0:00:28]}  Ke7 {[%clk 0:00:36]} 23. Qxc5+ {[%clk 0:00:25]}  Qxc5 {[%clk 0:00:35]} 24. Rxc5 {[%clk 0:00:25]}  Bxf3 {[%clk 0:00:23]} 25. Bxf3 {[%clk 0:00:22]}  Nd2 {[%clk 0:00:24]} 26. Rc7+ {[%clk 0:00:21]}  Kd6 {[%clk 0:00:19]} 27. Rc6+ {[%clk 0:00:18]}  Ke5 {[%clk 0:00:12]} 28. Bg4 {[%clk 0:00:14]}  Rhe8 {[%clk 0:00:05]} 29. g3 {[%clk 0:00:10]}  Nc4 {[%clk 0:00:04]} 30. Bh5 {[%clk 0:00:05]}  Re7 {[%clk 0:00:03]} 31. Kg2 {[%clk 0:00:04]}  Kd5 {[%clk 0:00:03]} 32. Bf3+ {[%clk 0:00:04]}  Kd4 {[%clk 0:00:03]} 33. Rxa6 {[%clk 0:00:03]}  Nxb2 {[%clk 0:00:03]} 34. Rb6 {[%clk 0:00:03]}  Kc5 {[%clk 0:00:02]} 35. Rc6+ {[%clk 0:00:03]}  Kb4 {[%clk 0:00:02]} 36. Rb6 {[%clk 0:00:03]}  Nc4 {[%clk 0:00:03]} 37. Rc6 {[%clk 0:00:03]}  e5 {[%clk 0:00:03]} 38. Bc1 {[%clk 0:00:02]}  e4 {[%clk 0:00:03]} 39. Be2 {[%clk 0:00:01]}  Rd5 {[%clk 0:00:02]} 40. Bf4 {[%clk 0:00:01]}  Rd4 {[%clk 0:00:02]} 41. Be3 {[%clk 0:00:01]}  Rd5 {[%clk 0:00:02]} 42. Bf4 {[%clk 0:00:01]}  Red7 {[%clk 0:00:02]} 43. Rc8 {[%clk 0:00:02]}  Rc5 {[%clk 0:00:01]} 44. Bg4 {[%clk 0:00:02]}  Rxc8 {[%clk 0:00:01]} 45. Bxd7 {[%clk 0:00:03]}  Rd8 {[%clk 0:00:02]} 46. Be6 {[%clk 0:00:03]}  Rd1 {[%clk 0:00:02]} 47. Bf5 {[%clk 0:00:03]}  Ra1 {[%clk 0:00:03]} 48. Bxe4 {[%clk 0:00:04]}  Rxa2 {[%clk 0:00:03]} 49. Bxh7 {[%clk 0:00:04]}  Rb2 {[%clk 0:00:03]} 50. Bg8 {[%clk 0:00:04]}  Kc5 {[%clk 0:00:04]} 51. h4 {[%clk 0:00:05]}  b4 {[%clk 0:00:04]} 52. h5 {[%clk 0:00:06]}  Ra2 {[%clk 0:00:05]} 53. h6 {[%clk 0:00:06]}  Ra7 {[%clk 0:00:02]} 54. h7 {[%clk 0:00:05]}  Rxh7 {[%clk 0:00:02]} 55. Bxh7 {[%clk 0:00:06]}  b3 {[%clk 0:00:03]} 56. Bc1 {[%clk 0:00:06]}  Kb4 {[%clk 0:00:03]} 57. g4 {[%clk 0:00:05]}  b2 {[%clk 0:00:03]} 58. Bh6 {[%clk 0:00:04]}  Kc3 {[%clk 0:00:02]} 59. Bg7 {[%clk 0:00:05]} 1-0


[Site "https://www.chess.com"]

[Event "Titled Tuesday Blitz August 3 2021"]
[White "Pacheco Lugo, Alejandro Jose"]
[Black "Ulko, Jaroslav"]
[WhiteFideId "3903745"]
[BlackFideId "4116658"]
[WhiteElo "2125"]
[BlackElo "2304"]
[Result "0-1"]
[Round "07"]
[TimeControl "180+1"]
[Date "2021.08.03"]
[WhiteClock "0:00:01"]
[BlackClock "0:00:11"]

1. e4 {[%clk 0:03:00]}  c6 {[%clk 0:02:58]} 2. d4 {[%clk 0:02:58]}  d5 {[%clk 0:02:58]} 3. e5 {[%clk 0:02:58]}  Bf5 {[%clk 0:02:58]} 4. Nf3 {[%clk 0:02:57]}  e6 {[%clk 0:02:58]} 5. Be2 {[%clk 0:02:57]}  Ne7 {[%clk 0:02:57]} 6. O-O {[%clk 0:02:56]}  Nd7 {[%clk 0:02:58]} 7. Nbd2 {[%clk 0:02:56]}  h6 {[%clk 0:02:51]} 8. Nb3 {[%clk 0:02:55]}  Bh7 {[%clk 0:02:50]} 9. Bd2 {[%clk 0:02:55]}  Nf5 {[%clk 0:02:49]} 10. Rc1 {[%clk 0:02:54]}  Be7 {[%clk 0:02:43]} 11. g4 {[%clk 0:02:53]}  Nh4 {[%clk 0:02:42]} 12. Nxh4 {[%clk 0:02:53]}  Bxh4 {[%clk 0:02:43]} 13. f4 {[%clk 0:02:54]}  f5 {[%clk 0:02:39]} 14. exf6 {[%clk 0:02:54]}  Bxf6 {[%clk 0:02:34]} 15. Bf3 {[%clk 0:02:34]}  O-O {[%clk 0:02:34]} 16. Qe2 {[%clk 0:02:25]}  Re8 {[%clk 0:02:29]} 17. Qg2 {[%clk 0:02:25]}  g5 {[%clk 0:02:04]} 18. c4 {[%clk 0:02:02]}  Bd3 {[%clk 0:01:38]} 19. Be2 {[%clk 0:01:55]}  Be4 {[%clk 0:01:36]} 20. Bf3 {[%clk 0:01:53]}  Bd3 {[%clk 0:01:35]} 21. Be2 {[%clk 0:01:54]}  Bxe2 {[%clk 0:01:20]} 22. Qxe2 {[%clk 0:01:54]}  Qe7 {[%clk 0:01:19]} 23. Rce1 {[%clk 0:01:46]}  Qh7 {[%clk 0:01:06]} 24. cxd5 {[%clk 0:01:36]}  cxd5 {[%clk 0:01:05]} 25. fxg5 {[%clk 0:01:14]}  hxg5 {[%clk 0:00:55]} 26. Qb5 {[%clk 0:01:12]}  b6 {[%clk 0:00:36]} 27. Qc6 {[%clk 0:00:51]}  Rac8 {[%clk 0:00:34]} 28. Qd6 {[%clk 0:00:46]}  Qe7 {[%clk 0:00:30]} 29. Qg3 {[%clk 0:00:21]}  Qg7 {[%clk 0:00:26]} 30. Qd6 {[%clk 0:00:20]}  Bxd4+ {[%clk 0:00:21]} 31. Nxd4 {[%clk 0:00:19]}  Qxd4+ {[%clk 0:00:21]} 32. Be3 {[%clk 0:00:20]}  Qg7 {[%clk 0:00:18]} 33. Rc1 {[%clk 0:00:11]}  Rxc1 {[%clk 0:00:16]} 34. Rxc1 {[%clk 0:00:12]}  Nf8 {[%clk 0:00:15]} 35. Rc7 {[%clk 0:00:11]}  Qg6 {[%clk 0:00:14]} 36. Bd4 {[%clk 0:00:08]}  Qb1+ {[%clk 0:00:12]} 37. Kg2 {[%clk 0:00:08]}  Qe4+ {[%clk 0:00:13]} 38. Kg3 {[%clk 0:00:01]}  Qxd4 {[%clk 0:00:11]} 0-1


[Site "https://www.chess.com"]

[Event "Titled Tuesday Blitz August 3 2021"]
[White "Petesch, Gabriel"]
[Black "Daggupati, Balaji"]
[WhiteFideId "2032465"]
[BlackFideId "2090759"]
[WhiteElo "2374"]
[BlackElo "2675"]
[Result "0-1"]
[Round "07"]
[TimeControl "180+1"]
[Date "2021.08.03"]
[WhiteClock "0:00:03"]
[BlackClock "0:01:01"]

1. Nf3 {[%clk 0:03:00]}  d5 {[%clk 0:02:59]} 2. b3 {[%clk 0:02:58]}  e6 {[%clk 0:02:58]} 3. Bb2 {[%clk 0:02:56]}  b6 {[%clk 0:02:58]} 4. c4 {[%clk 0:02:55]}  Bb7 {[%clk 0:02:58]} 5. e3 {[%clk 0:02:55]}  c5 {[%clk 0:02:58]} 6. cxd5 {[%clk 0:02:54]}  exd5 {[%clk 0:02:57]} 7. d4 {[%clk 0:02:52]}  Nf6 {[%clk 0:02:58]} 8. dxc5 {[%clk 0:02:46]}  bxc5 {[%clk 0:02:57]} 9. Bb5+ {[%clk 0:02:44]}  Nbd7 {[%clk 0:02:48]} 10. Ne5 {[%clk 0:02:31]}  Qa5+ {[%clk 0:02:36]} 11. Nc3 {[%clk 0:02:29]}  Bd6 {[%clk 0:02:23]} 12. Nxd7 {[%clk 0:02:20]}  Nxd7 {[%clk 0:02:24]} 13. Bxd7+ {[%clk 0:02:05]}  Kxd7 {[%clk 0:02:25]} 14. O-O {[%clk 0:02:04]}  Rad8 {[%clk 0:02:13]} 15. Nxd5 {[%clk 0:02:00]}  Kc8 {[%clk 0:02:13]} 16. e4 {[%clk 0:01:43]}  f5 {[%clk 0:02:13]} 17. e5 {[%clk 0:00:54]}  Bb8 {[%clk 0:02:11]} 18. Ne7+ {[%clk 0:00:48]}  Kc7 {[%clk 0:02:11]} 19. Qc2 {[%clk 0:00:29]}  g6 {[%clk 0:02:06]} 20. Rac1 {[%clk 0:00:28]}  Rhe8 {[%clk 0:02:05]} 21. Nxf5 {[%clk 0:00:10]}  gxf5 {[%clk 0:02:03]} 22. Qxf5 {[%clk 0:00:11]}  Bd5 {[%clk 0:02:01]} 23. Qxh7+ {[%clk 0:00:08]}  Rd7 {[%clk 0:01:59]} 24. Qc2 {[%clk 0:00:09]}  Kb6 {[%clk 0:01:51]} 25. a3 {[%clk 0:00:08]}  Rg8 {[%clk 0:01:44]} 26. f3 {[%clk 0:00:08]}  Qb5 {[%clk 0:01:25]} 27. b4 {[%clk 0:00:06]}  cxb4 {[%clk 0:01:25]} 28. axb4 {[%clk 0:00:05]}  Kb7 {[%clk 0:01:22]} 29. Bc3 {[%clk 0:00:04]}  Bc7 {[%clk 0:01:19]} 30. Kh1 {[%clk 0:00:03]}  Rdg7 {[%clk 0:01:03]} 31. Rf2 {[%clk 0:00:02]}  Rxg2 {[%clk 0:01:02]} 32. Rxg2 {[%clk 0:00:02]}  Bxf3 {[%clk 0:01:02]} 33. Rg1 {[%clk 0:00:02]}  Rxg2 {[%clk 0:01:01]} 34. Rxg2 {[%clk 0:00:03]}  Qf1# {[%clk 0:01:01]} 0-1


[Site "https://www.chess.com"]